bitfinex/quotes_BTCUSD_20250614
["timestamp","ask_amount","ask_price","bid_price","bid_amount"]
[1749895709458,0.03052117,105020.0,105010.0,1.18829177]
[1749895712140,0.03052117,105020.0,105010.0,1.16329177]
[1749895712364,0.03052117,105020.0,105010.0,1.18829177]
[1749895713013,0.04004244,105020.0,105010.0,1.17069177]
[1749895713260,0.04004244,105020.0,105010.0,1.15209177]
[1749895713477,0.04004244,105020.0,105010.0,1.12709177]
[1749895713694,0.04004244,105020.0,105010.0,1.24824099]
[1749895714819,0.03052117,105020.0,105010.0,1.24824099]
[1749895716603,0.04004253,105020.0,105010.0,1.24824099]
[1749895716812,0.03052117,105020.0,105010.0,1.24824099]
[1749895717023,0.04956416,105020.0,105010.0,0.5481013]
[1749895717243,0.04956398,105020.0,105010.0,1.13751092]
[1749895717469,0.04956398,105020.0,105010.0,1.11251092]
[1749895717910,0.04956398,105020.0,105010.0,1.13751092]
[1749895718360,0.04956398,105020.0,105010.0,0.58191208]
[1749895718570,0.04956398,105020.0,105010.0,0.55691208]
[1749895720800,0.04956398,105020.0,105010.0,1.13751092]
[1749895721035,0.04956398,105020.0,105010.0,1.23366014]
[1749895721994,0.0590857,105020.0,105010.0,0.40195208]
[1749895722222,0.82228237,105020.0,105010.0,0.30669981]
[1749895722442,0.82228237,105020.0,105010.0,0.52118262]
[1749895722665,0.82228237,105020.0,105010.0,0.48070525]
[1749895723154,0.82228237,105020.0,105010.0,0.49022778]
[1749895723372,0.82228237,105020.0,105010.0,0.54022778]
[1749895723617,0.82228237,105020.0,105010.0,0.49975022]
[1749895725396,0.82228237,105020.0,105010.0,0.57794135]
[1749895726540,0.82228237,105020.0,105010.0,0.56841891]
[1749895727014,0.82228237,105020.0,105010.0,0.48070525]
[1749895727254,0.81276065,105020.0,105010.0,0.47118262]
[1749895727704,0.81276065,105020.0,105010.0,0.48070534]
[1749895728141,0.81276065,105020.0,105010.0,0.49022797]
[1749895728546,0.81276065,105020.0,105010.0,0.48070534]
[1749895729165,0.80323875,105020.0,105010.0,0.48070534]
[1749895730559,0.80323875,105020.0,105010.0,0.49022797]
[1749895733123,0.80323875,105020.0,105010.0,0.4997505]
[1749895736425,0.80323875,105020.0,105010.0,0.38446358]
[1749895736654,0.80323875,105020.0,105010.0,0.39398611]
[1749895736939,0.80323875,105020.0,105010.0,0.22950358]
[1749895737155,0.80323875,105020.0,105010.0,0.38446358]
[1749895737696,0.80323875,105020.0,105010.0,0.37494086]
[1749895737897,0.89938797,105020.0,105010.0,0.02]
[1749895738098,0.80323875,105020.0,105010.0,0.02]
[1749895738509,0.80323875,105020.0,105010.0,0.17496]
[1749895739903,0.80323875,105020.0,105010.0,0.02]
[1749895747343,0.80323875,105020.0,105010.0,0.008]
[1749895747545,0.80323875,105020.0,105010.0,0.009]
[1749895747667,0.80223875,105020.0,105010.0,0.001]
[1749895748118,0.80223875,105020.0,105010.0,0.002]
[1749895750522,0.78223875,105020.0,105010.0,0.002]
[1749895751793,1.53462973,105020.0,105010.0,0.002]
[1749895752038,7.36298794,105020.0,105010.0,0.002]
[1749895753001,7.36298794,105020.0,105010.0,0.001]
[1749895753206,7.36398794,105020.0,105010.0,0.001]
[1749895754023,0.20954312,104990.0,104980.0,0.01763634]
[1749895754226,0.80514196,104990.0,104980.0,0.01763634]
[1749895754435,0.80514196,104990.0,104980.0,0.03523634]
[1749895754659,0.80514196,104990.0,104980.0,0.06763634]
[1749895754873,0.93479118,104990.0,104980.0,0.00013634]
[1749895755342,0.93479118,104990.0,104980.0,0.01213634]
[1749895755578,0.83864196,104990.0,104980.0,0.01213634]
[1749895755800,0.99460196,104990.0,104980.0,0.02113634]
[1749895757367,0.93334838,104990.0,104980.0,0.02113634]
[1749895758269,0.9428081,104990.0,104980.0,0.02113634]
[1749895758513,1.37895732,104990.0,104980.0,0.02113634]
[1749895761345,1.52381508,104990.0,104980.0,0.02113634]
[1749895762611,6.57381508,104990.0,104980.0,0.02113634]
[1749895763042,6.57281508,104990.0,104980.0,0.01213634]
[1749895763472,6.57281508,104990.0,104980.0,0.00113634]
[1749895763678,6.57281508,104990.0,104980.0,0.00213634]
[1749895764304,6.84725508,104990.0,104980.0,0.00213634]
[1749895764533,6.84725508,104990.0,104980.0,0.00113634]
[1749895764752,6.87292375,104990.0,104980.0,0.00113634]
[1749895764963,6.65529508,104990.0,104980.0,0.00013634]
[1749895765183,6.8749579,104990.0,104980.0,0.00013634]
[1749895770509,7.37859875,104990.0,104980.0,0.00013634]
[1749895771633,7.40704912,104990.0,104980.0,0.00013634]
[1749895774674,7.21204912,104990.0,104980.0,0.00013634]
[1749895774878,7.40708912,104990.0,104980.0,0.00013634]
[1749895775816,7.37863875,104990.0,104980.0,0.00013634]
[1749895777619,7.40708912,104990.0,104980.0,0.00013634]
[1749895780322,7.37865214,104990.0,104980.0,0.00013634]
[1749895780547,7.4049974,104990.0,104980.0,0.00013634]
[1749895780783,7.44598023,104990.0,104980.0,0.00013634]
[1749895781227,7.44298023,104990.0,104980.0,0.00013634]
[1749895781460,5.81960301,104960.0,104950.0,0.0332]
[1749895781692,7.09957529,104960.0,104950.0,0.0266838]
[1749895781915,6.60523003,104960.0,104950.0,0.0345]
[1749895782137,6.63385603,104960.0,104950.0,0.04339484]
[1749895782362,6.63385603,104960.0,104950.0,0.06118471]
[1749895782651,6.63385603,104960.0,104950.0,0.02668471]
[1749895782884,7.12820129,104960.0,104950.0,0.01778981]
[1749895783111,7.12820129,104960.0,104950.0,0.03068471]
[1749895783327,7.22435051,104960.0,104950.0,0.03068471]
[1749895783551,7.12820129,104960.0,104950.0,0.03068471]
[1749895783773,7.12820129,104960.0,104950.0,0.04958471]
[1749895784700,6.19671932,104960.0,104950.0,0.03268474]
[1749895784926,6.22507554,104960.0,104950.0,0.006]
[1749895785157,7.75778974,104960.0,104950.0,0.006]
[1749895785380,7.85393896,104960.0,104950.0,0.006]
[1749895785816,7.65652678,104960.0,104950.0,0.006]
[1749895786042,7.82123979,104960.0,104950.0,0.002]
[1749895786283,7.53237057,104960.0,104950.0,0.002]
[1749895786506,0.76964296,104940.0,104930.0,0.0175]
[1749895786727,1.42174822,104940.0,104930.0,0.0175]
[1749895786935,1.42174822,104940.0,104930.0,0.05119114]
[1749895787161,0.92740296,104940.0,104930.0,0.05119113]
[1749895787392,1.42174822,104940.0,104930.0,0.06008677]
[1749895787627,1.42174822,104940.0,104930.0,0.0334]
[1749895787909,1.42174822,104940.0,104930.0,0.06005704]
[1749895787910,1.42188421,104940.0,104930.0,0.06005704]
[1749895788130,1.42188421,104940.0,104930.0,0.05117138]
[1749895788354,1.26412421,104940.0,104930.0,0.05117138]
[1749895788575,1.46708421,104940.0,104930.0,0.05217138]
[1749895788798,1.46708421,104940.0,104930.0,0.05217133]
[1749895789023,1.47645807,104940.0,104930.0,0.05217131]
[1749895789245,1.47645807,104940.0,104930.0,0.0521713]
[1749895789471,1.47645807,104940.0,104930.0,0.0344]
[1749895789710,0.98211281,104940.0,104930.0,0.05221336]
[1749895789933,1.47645807,104940.0,104930.0,0.05221336]
[1749895791072,1.47645807,104940.0,104930.0,0.0522133]
[1749895791288,1.47645807,104940.0,104930.0,0.05221332]
[1749895791532,1.47645807,104940.0,104930.0,0.05221331]
[1749895791967,1.47645807,104940.0,104930.0,0.05221332]
[1749895792156,1.47645807,104940.0,104930.0,0.05221331]
[1749895792370,1.50508607,104940.0,104930.0,0.0344]
[1749895792586,1.50508607,104940.0,104930.0,0.05221331]
[1749895792879,1.50508607,104940.0,104930.0,0.0344]
[1749895793082,1.50508607,104940.0,104930.0,0.05221332]
[1749895793295,1.50508607,104940.0,104930.0,0.05221331]
[1749895794430,1.50508607,104940.0,104930.0,0.0344]
[1749895794644,1.50508607,104940.0,104930.0,0.05221331]
[1749895794881,1.50508607,104940.0,104930.0,0.05221333]
[1749895795108,1.50508607,104940.0,104930.0,0.05221337]
[1749895795745,1.50508607,104940.0,104930.0,0.0344]
[1749895795935,1.01074081,104940.0,104930.0,0.05221372]
[1749895796158,1.50508607,104940.0,104930.0,0.0344]
[1749895796363,1.50508607,104940.0,104930.0,0.05221375]
[1749895796992,1.50508607,104940.0,104930.0,0.0344]
[1749895797207,1.50508607,104940.0,104930.0,0.05221375]
[1749895797628,1.50508607,104940.0,104930.0,0.0344]
[1749895798103,1.50508607,104940.0,104930.0,0.05221378]
[1749895798307,1.50508607,104940.0,104930.0,0.0344]
[1749895798718,1.30212607,104940.0,104930.0,0.05221378]
[1749895798851,1.50568607,104940.0,104930.0,0.05221378]
[1749895799288,1.50568607,104940.0,104930.0,0.0344]
[1749895799510,1.50568607,104940.0,104930.0,0.05221378]
[1749895799939,1.50564607,104940.0,104930.0,0.05221378]
[1749895800603,1.01130081,104940.0,104930.0,0.0344]
[1749895800853,1.50564607,104940.0,104930.0,0.05221378]
[1749895801064,1.50564607,104940.0,104930.0,0.0344]
[1749895801269,1.50564607,104940.0,104930.0,0.05221369]
[1749895801491,1.50564607,104940.0,104930.0,0.0522137]
[1749895801706,1.50564607,104940.0,104930.0,0.05221376]
[1749895801916,1.50564607,104940.0,104930.0,0.0344]
[1749895802131,1.50564607,104940.0,104930.0,0.05221377]
[1749895802790,1.50564607,104940.0,104930.0,0.0344]
[1749895803253,1.50564607,104940.0,104930.0,0.0522137]
[1749895803684,1.50564607,104940.0,104930.0,0.05221377]
[1749895803899,1.50564607,104940.0,104930.0,0.05221376]
[1749895804111,1.50564607,104940.0,104930.0,0.0344]
[1749895804338,1.50564607,104940.0,104930.0,0.05221376]
[1749895804553,1.50564607,104940.0,104930.0,0.05227641]
[1749895805186,1.50564607,104940.0,104930.0,0.05227361]
[1749895805636,1.30212607,104940.0,104930.0,0.05227357]
[1749895805851,1.50528607,104940.0,104930.0,0.05227357]
[1749895806478,1.50528607,104940.0,104930.0,0.10227357]
[1749895806691,1.50528607,104940.0,104930.0,0.05227357]
[1749895806940,1.50528607,104940.0,104930.0,0.0344]
[1749895807160,1.50528607,104940.0,104930.0,0.05227357]
[1749895807593,1.50528607,104940.0,104930.0,0.0844]
[1749895807821,0.60778081,104940.0,104930.0,0.32419123]
[1749895808048,0.60218811,104940.0,104930.0,0.29406311]
[1749895808272,0.27171736,104940.0,104930.0,0.27146443]
[1749895808483,0.27171736,104940.0,104930.0,0.25359281]
[1749895808702,0.22883736,104940.0,104930.0,0.28099396]
[1749895808926,0.00966451,104940.0,104930.0,0.34052315]
[1749895809136,0.07160201,104940.0,104930.0,0.43667237]
[1749895809354,0.07160183,104940.0,104930.0,0.36880116]
[1749895809573,0.07160183,104940.0,104930.0,0.38667202]
[1749895809797,0.08113072,104940.0,104930.0,0.38667202]
[1749895810017,0.07160183,104940.0,104930.0,0.38667201]
[1749895810253,0.01919331,104940.0,104930.0,0.48291377]
[1749895810471,0.06207322,104940.0,104930.0,0.48291372]
[1749895811162,0.05254451,104940.0,104930.0,0.48291375]
[1749895811393,0.05254451,104940.0,104930.0,0.43676453]
[1749895811606,0.06207322,104940.0,104930.0,0.38676448]
[1749895812076,0.07160211,104940.0,104930.0,0.3688937]
[1749895812297,0.06207322,104940.0,104930.0,0.38676424]
[1749895812521,0.06207322,104940.0,104930.0,0.38676425]
[1749895813888,0.07160211,104940.0,104930.0,0.38676425]
[1749895814105,0.07160211,104940.0,104930.0,0.38676427]
[1749895814337,0.08113109,104940.0,104930.0,0.38676427]
[1749895815064,0.09066016,104940.0,104930.0,0.38671857]
[1749895815292,0.09066016,104940.0,104930.0,0.43671857]
[1749895815506,0.09066016,104940.0,104930.0,0.38671857]
[1749895816177,0.07160257,104940.0,104930.0,0.38671857]
[1749895816606,0.08113164,104940.0,104930.0,0.3688937]
[1749895816822,0.08113164,104940.0,104930.0,0.38671857]
[1749895817032,0.08113164,104940.0,104930.0,0.3688937]
[1749895817238,0.08113164,104940.0,104930.0,0.38671857]
[1749895817709,0.27171673,104940.0,104930.0,0.3771768]
[1749895817921,0.26218802,104940.0,104930.0,0.51791768]
[1749895818134,0.26218802,104940.0,104930.0,0.50963485]
[1749895818387,0.26218802,104940.0,104930.0,0.34983485]
[1749895818601,0.25265913,104940.0,104930.0,0.27140662]
[1749895818808,0.25265913,104940.0,104930.0,0.25359309]
[1749895819013,0.25265913,104940.0,104930.0,0.27140662]
[1749895819432,0.25265913,104940.0,104930.0,0.25359309]
[1749895819854,0.25265913,104940.0,104930.0,0.27140662]
[1749895820274,0.25253913,104940.0,104930.0,0.25359309]
[1749895820475,0.24301015,104940.0,104930.0,0.23453332]
[1749895820688,0.23348108,104940.0,104930.0,0.23453332]
[1749895821162,0.23348108,104940.0,104930.0,0.2523471]
[1749895821371,0.23348108,104940.0,104930.0,0.25234711]
[1749895821580,0.23348108,104940.0,104930.0,0.26187709]
[1749895822254,0.23348108,104940.0,104930.0,0.24281715]
[1749895822501,0.23348108,104940.0,104930.0,0.2618772]
[1749895822752,0.23348108,104940.0,104930.0,0.31767008]
[1749895822976,0.05242479,104940.0,104930.0,0.3271996]
[1749895823206,0.05242442,104940.0,104930.0,0.3271996]
[1749895823424,0.07148165,104940.0,104930.0,0.3271996]
[1749895823866,0.06195294,104940.0,104930.0,0.3271996]
[1749895824080,0.07148174,104940.0,104930.0,0.3271996]
[1749895824305,0.07148165,104940.0,104930.0,0.3271996]
[1749895824530,0.06195294,104940.0,104930.0,0.3271996]
[1749895824764,0.01919294,104940.0,104930.0,0.3271996]
[1749895824988,0.00013599,104940.0,104930.0,0.3771996]
[1749895825206,0.00966442,104940.0,104930.0,0.3771996]
[1749895825424,0.00013599,104940.0,104930.0,0.47344136]
[1749895826122,0.00013599,104940.0,104930.0,0.42344136]
[1749895827902,0.00966442,104940.0,104930.0,0.42344136]
[1749895828779,0.00013599,104940.0,104930.0,0.47344136]
[1749895829013,0.00013599,104940.0,104930.0,0.98232747]
[1749895829261,0.00013599,104940.0,104930.0,1.03948942]
[1749895829992,0.00013599,104940.0,104930.0,1.03848942]
[1749895830225,0.00113599,104940.0,104930.0,1.04548942]
[1749895831124,0.00113599,104940.0,104930.0,1.05848942]
[1749895831339,0.00113599,104940.0,104930.0,1.05148942]
[1749895831551,0.00013599,104940.0,104930.0,1.03848942]
[1749895831773,0.00313599,104940.0,104930.0,1.08048942]
[1749895834324,0.00313599,104940.0,104930.0,1.03048942]
[1749895835087,0.00313599,104940.0,104930.0,1.08048942]
[1749895835304,0.00313599,104940.0,104930.0,1.03048942]
[1749895835511,0.00313599,104940.0,104930.0,1.08048942]
[1749895835932,0.00313599,104940.0,104930.0,1.02332747]
[1749895836447,0.00313599,104940.0,104930.0,0.97332747]
[1749895836929,0.00313599,104940.0,104930.0,1.02332747]
[1749895841779,0.00313599,104940.0,104930.0,1.04832747]
[1749895842403,0.00313599,104940.0,104930.0,0.99832747]
[1749895842820,0.00313599,104940.0,104930.0,1.04832747]
[1749895843449,0.00313599,104940.0,104930.0,0.99832747]
[1749895846455,0.00313599,104940.0,104930.0,1.15936747]
[1749895846866,0.00313599,104940.0,104930.0,1.13436747]
[1749895847064,0.00313599,104940.0,104930.0,1.15936747]
[1749895848824,0.00313599,104940.0,104930.0,1.20936747]
[1749895849691,0.00313599,104940.0,104930.0,1.54936747]
[1749895850700,0.00313599,104940.0,104930.0,1.49936747]
[1749895852167,0.00313599,104940.0,104930.0,1.54936747]
[1749895852450,0.00313599,104940.0,104930.0,1.49936747]
[1749895852897,0.00313599,104940.0,104930.0,1.52730464]
[1749895853537,0.00313599,104940.0,104930.0,1.60351133]
[1749895854301,0.00313599,104940.0,104930.0,1.65351133]
[1749895854504,0.00313599,104940.0,104930.0,1.60351133]
[1749895856205,0.00313599,104940.0,104930.0,1.70351133]
[1749895859656,0.00313599,104940.0,104930.0,1.65299133]
[1749895860786,0.00313599,104940.0,104930.0,1.49247133]
[1749895861004,0.00313599,104940.0,104930.0,1.65299133]
[1749895861210,0.00313599,104940.0,104930.0,1.49247133]
[1749895861415,0.00313599,104940.0,104930.0,1.67194133]
[1749895861622,0.00313599,104940.0,104930.0,1.44247133]
[1749895861825,0.00313599,104940.0,104930.0,1.60283133]
[1749895862239,0.00313599,104940.0,104930.0,1.65283133]
[1749895862659,0.70596639,104970.0,104960.0,0.20960301]
[1749895862865,0.71549273,104970.0,104960.0,0.36996301]
[1749895863075,0.72501889,104970.0,104960.0,0.3794899]
[1749895863280,0.06245205,104970.0,104960.0,0.44792625]
[1749895863497,0.07197839,104970.0,104960.0,0.44792625]
[1749895863704,0.07197839,104970.0,104960.0,0.49792625]
[1749895863916,0.74732838,104970.0,104960.0,0.36043612]
[1749895864147,0.74732838,104970.0,104960.0,0.37949035]
[1749895864358,0.74732838,104970.0,104960.0,0.38049053]
[1749895864569,0.25298312,104970.0,104960.0,0.38049053]
[1749895864772,0.74732838,104970.0,104960.0,0.38049053]
[1749895865062,0.75685491,104970.0,104960.0,0.44807435]
[1749895865273,0.75685491,104970.0,104960.0,0.43854737]
[1749895865456,0.74732875,104970.0,104960.0,0.42902021]
[1749895865706,0.77862875,104970.0,104960.0,0.37096337]
[1749895866322,0.76910241,104970.0,104960.0,0.21060337]
[1749895866531,0.76910241,104970.0,104960.0,0.37100337]
[1749895866774,0.72570241,104970.0,104960.0,0.001]
[1749895866994,0.76910241,104970.0,104960.0,0.001]
[1749895869632,0.76910241,104970.0,104960.0,0.19154878]
[1749895869855,0.58809804,104970.0,104960.0,0.20107603]
[1749895870061,0.77862866,104970.0,104960.0,0.2600858]
[1749895871009,0.77862866,104970.0,104960.0,0.22013008]
[1749895871535,0.77862866,104970.0,104960.0,0.22965688]
[1749895871536,0.10327857,104970.0,104960.0,0.22965688]
[1749895871794,0.07197857,104970.0,104960.0,0.22965688]
[1749895872541,0.00952571,104970.0,104960.0,0.22965688]
[1749895872763,0.01906153,104980.0,104970.0,0.21910911]
[1749895872974,0.27202433,104980.0,104970.0,0.21910911]
[1749895873206,0.28154995,104980.0,104970.0,0.21910911]
[1749895873697,0.09103748,104980.0,104970.0,0.26520025]
[1749895873913,0.28254995,104980.0,104970.0,0.21910911]
[1749895874135,0.28369319,104980.0,104970.0,0.21910911]
[1749895874352,0.28369319,104980.0,104970.0,0.20958322]
[1749895874580,0.0836551,104980.0,104970.0,0.22863518]
[1749895875020,0.0836551,104980.0,104970.0,0.27462625]
[1749895875246,0.0836551,104980.0,104970.0,0.22863518]
[1749895875985,0.2836931,104980.0,104970.0,0.22863518]
[1749895876401,0.2836931,104980.0,104970.0,0.21910929]
[1749895876609,0.29076821,104980.0,104970.0,0.20958322]
[1749895876824,0.80141347,104980.0,104970.0,0.20958322]
[1749895879444,0.78511347,104980.0,104970.0,0.20958322]
[1749895880582,0.78511347,104980.0,104970.0,0.20958331]
[1749895881229,0.29076821,104980.0,104970.0,0.20958331]
[1749895881437,0.7755883,104980.0,104970.0,0.20005706]
[1749895881650,0.7918883,104980.0,104970.0,0.20958331]
[1749895882714,0.7913283,104980.0,104970.0,0.20958331]
[1749895884546,0.7584283,104980.0,104970.0,0.20958331]
[1749895887359,0.00214324,104980.0,104970.0,0.30352115]
[1749895887616,0.00214324,104980.0,104970.0,0.89410817]
[1749895887839,0.00214324,104980.0,104970.0,1.05362817]
[1749895888501,0.00114324,104980.0,104970.0,0.55928291]
[1749895888724,0.00014324,104980.0,104970.0,0.56028291]
[1749895890252,0.00014324,104980.0,104970.0,0.56128291]
[1749895892901,0.00966804,104980.0,104970.0,0.56128291]
[1749895893109,0.00014324,104980.0,104970.0,0.56128291]
[1749895896314,0.00966804,104980.0,104970.0,0.56128291]
[1749895896529,0.00014324,104980.0,104970.0,0.56128291]
[1749895897866,0.00966813,104980.0,104970.0,0.56128291]
[1749895898080,0.00014324,104980.0,104970.0,0.56128291]
[1749895898295,0.00966813,104980.0,104970.0,0.56128291]
[1749895898544,0.00014324,104980.0,104970.0,0.56128291]
[1749895899457,0.00966813,104980.0,104970.0,0.56128291]
[1749895899889,0.00014324,104980.0,104970.0,0.56128291]
[1749895900110,0.00966813,104980.0,104970.0,0.56128291]
[1749895901476,0.2001806,104980.0,104970.0,0.56128291]
[1749895901710,0.03824427,104980.0,104970.0,0.52672301]
[1749895901925,0.71357711,104980.0,104970.0,0.20205706]
[1749895902153,0.71357711,104980.0,104970.0,0.38002947]
[1749895904101,0.71357711,104980.0,104970.0,0.22110947]
[1749895904520,0.70405194,104980.0,104970.0,0.21158331]
[1749895906428,0.6945265,104980.0,104970.0,0.20205706]
[1749895906895,0.6945265,104980.0,104970.0,0.2115834]
[1749895907105,0.20018124,104980.0,104970.0,0.2115834]
[1749895907322,0.19986811,104980.0,104970.0,0.28154752]
[1749895907541,0.19986811,104980.0,104970.0,0.27202136]
[1749895907762,0.19986811,104980.0,104970.0,0.28154761]
[1749895908884,0.19986811,104980.0,104970.0,0.22143572]
[1749895909103,0.24270811,104980.0,104970.0,0.22143572]
[1749895909796,0.75325337,104980.0,104970.0,0.19285669]
[1749895910022,0.77005337,104980.0,104970.0,0.20238322]
[1749895910243,0.77005337,104980.0,104970.0,0.21190966]
[1749895910460,0.77005337,104980.0,104970.0,0.22143591]
[1749895910899,0.77005337,104980.0,104970.0,0.21190966]
[1749895911301,0.81506411,104980.0,104970.0,0.21190966]
[1749895912129,0.79886411,104980.0,104970.0,0.221436]
[1749895912586,0.79886411,104980.0,104970.0,0.23096225]
[1749895914799,0.79886411,104980.0,104970.0,0.24048832]
[1749895915066,0.79886411,104980.0,104970.0,0.30253003]
[1749895915358,0.79886411,104980.0,104970.0,0.24048832]
[1749895915775,0.5750369,104980.0,104970.0,0.24048832]
[1749895915977,0.01904978,104980.0,104970.0,0.81159045]
[1749895916401,0.02619537,104990.0,104980.0,0.25308824]
[1749895916614,0.07783936,104990.0,104980.0,0.25308824]
[1749895916833,0.07783936,104990.0,104980.0,0.34923746]
[1749895917076,0.08736362,104990.0,104980.0,0.34923746]
[1749895917279,0.05476779,104990.0,104980.0,0.25308824]
[1749895917488,0.09688779,104990.0,104980.0,0.25308824]
[1749895918161,0.08813903,104990.0,104980.0,0.25308824]
[1749895918591,0.08913903,104990.0,104980.0,0.41152824]
[1749895918794,0.65481956,104990.0,104980.0,0.41152824]
[1749895919256,0.48403869,104990.0,104980.0,0.25308824]
[1749895919498,0.05164453,104990.0,104980.0,0.25308824]
[1749895920572,0.07069296,104990.0,104980.0,0.25308824]
[1749895920816,0.270712,104990.0,104980.0,0.25308824]
[1749895921274,0.74586054,104990.0,104980.0,0.20003809]
[1749895921710,0.74586054,104990.0,104980.0,0.20956362]
[1749895922161,0.75562712,104990.0,104980.0,0.20956362]
[1749895922608,0.75562712,104990.0,104980.0,0.21908897]
[1749895922821,0.75562712,104990.0,104980.0,0.20956362]
[1749895923239,0.75562712,104990.0,104980.0,0.21908906]
[1749895924977,0.75562712,104990.0,104980.0,0.22861441]
[1749895925185,0.75562712,104990.0,104980.0,0.25503967]
[1749895926027,0.75562712,104990.0,104980.0,0.27213967]
[1749895926293,0.26143015,104990.0,104980.0,0.27213967]
[1749895926511,0.75562712,104990.0,104980.0,0.27213967]
[1749895928245,0.56513279,104990.0,104980.0,0.27213903]
[1749895928473,0.75562712,104990.0,104980.0,0.27213903]
[1749895929765,0.75562712,104990.0,104980.0,0.3342706]
[1749895930453,0.75562712,104990.0,104980.0,0.33427079]
[1749895931139,0.26143015,104990.0,104980.0,0.33427033]
[1749895932235,0.08045999,104990.0,104980.0,0.33427033]
[1749895932475,0.27095432,104990.0,104980.0,0.33427033]
[1749895933350,0.27095432,104990.0,104980.0,0.27213876]
[1749895934466,0.28047903,104990.0,104980.0,0.25308852]
[1749895934919,0.28047903,104990.0,104980.0,0.26261369]
[1749895935134,0.03833999,104990.0,104980.0,0.2721383]
[1749895935353,0.0899847,104990.0,104980.0,0.26261332]
[1749895935572,0.28047903,104990.0,104980.0,0.26261332]
[1749895936677,0.0899847,104990.0,104980.0,0.26261332]
[1749895936895,0.27095432,104990.0,104980.0,0.32379232]
[1749895937575,0.03833999,104990.0,104980.0,0.3333173]
[1749895937817,0.27095432,104990.0,104980.0,0.3333173]
[1749895938214,0.22883432,104990.0,104980.0,0.3333173]
[1749895938429,0.00952399,104990.0,104980.0,0.3333173]
[1749895938657,0.19047941,105000.0,104990.0,0.25066765]
[1749895938658,0.26117036,105000.0,104990.0,0.25066765]
[1749895938885,1.02981172,105010.0,105000.0,0.20952316]
[1749895939114,1.18825579,105010.0,105000.0,0.23159981]
[1749895939362,1.18825579,105010.0,105000.0,0.22207619]
[1749895939363,1.56722643,105010.0,105000.0,0.22207619]
[1749895939608,1.56722643,105010.0,105000.0,0.24112361]
[1749895940102,1.56722643,105010.0,105000.0,0.26017022]
[1749895940103,0.84481589,105010.0,105000.0,0.26017022]
[1749895940328,1.03527394,105010.0,105000.0,0.2601704]
[1749895940580,1.04479684,105010.0,105000.0,0.26969366]
[1749895941067,1.03527458,105010.0,105000.0,0.26969366]
[1749895941282,0.9735132,105010.0,105000.0,0.26969366]
[1749895941954,0.9745132,105010.0,105000.0,0.26969366]
[1749895943236,0.9745132,105010.0,105000.0,0.2601704]
[1749895944292,0.96499067,105010.0,105000.0,0.25064705]
[1749895945578,0.96499067,105010.0,105000.0,0.2601704]
[1749895946481,0.95546795,105010.0,105000.0,0.25064705]
[1749895946907,0.95546795,105010.0,105000.0,0.24112361]
[1749895947116,0.95546795,105010.0,105000.0,0.26017058]
[1749895947337,0.91386795,105010.0,105000.0,0.25064714]
[1749895947558,0.95546795,105010.0,105000.0,0.25064714]
[1749895948496,0.94594514,105010.0,105000.0,0.25064714]
[1749895952312,0.94594514,105010.0,105000.0,0.24112361]
[1749895953257,0.93642224,105010.0,105000.0,0.24112361]
[1749895953687,1.09386224,105010.0,105000.0,0.24112361]
[1749895954121,1.09386224,105010.0,105000.0,0.31182614]
[1749895955205,1.09386224,105010.0,105000.0,0.32134949]
[1749895955641,0.44236763,105010.0,105000.0,0.32134949]
[1749895955874,0.93642224,105010.0,105000.0,0.31182614]
[1749895956540,0.93642224,105010.0,105000.0,0.25064714]
[1749895957852,0.93642224,105010.0,105000.0,0.26017058]
[1749895958903,0.93642224,105010.0,105000.0,0.25064714]
[1749895959113,0.93642224,105010.0,105000.0,0.26017058]
[1749895960195,0.93642224,105010.0,105000.0,0.26969393]
[1749895960415,0.27093496,105010.0,105000.0,0.2696933]
[1749895960667,0.07095419,105010.0,105000.0,0.2696933]
[1749895960906,0.08047682,105010.0,105000.0,0.2696933]
[1749895961275,0.63626453,105010.0,105000.0,0.2696933]
[1749895961495,0.61721946,105010.0,105000.0,0.2696933]
[1749895961701,0.63626434,105010.0,105000.0,0.2696933]
[1749895962272,0.62674181,105010.0,105000.0,0.2696933]
[1749895962474,0.63626434,105010.0,105000.0,0.2696933]
[1749895963095,0.62674181,105010.0,105000.0,0.2696933]
[1749895965216,0.61721946,105010.0,105000.0,0.2696933]
[1749895965417,0.63626434,105010.0,105000.0,0.2696933]
[1749895965693,0.63626425,105010.0,105000.0,0.2696933]
[1749895966522,0.08047654,105010.0,105000.0,0.2696933]
[1749895966739,0.63626425,105010.0,105000.0,0.2696933]
[1749895968416,0.62674181,105010.0,105000.0,0.36584252]
[1749895968982,0.58514181,105010.0,105000.0,0.36584252]
[1749895969192,0.62674181,105010.0,105000.0,0.36584252]
[1749895969389,0.61721946,105010.0,105000.0,0.36584252]
[1749895969993,0.0426,105010.0,105000.0,0.2696933]
[1749895970188,0.04216,105010.0,105000.0,0.2696933]
[1749895971093,0.001,105010.0,105000.0,0.2696933]
[1749895972925,0.001,105010.0,105000.0,0.82548101]
[1749895973142,0.001,105010.0,105000.0,1.07860277]
[1749895973355,0.001,105010.0,105000.0,1.17475199]
[1749895974201,0.46961506,105020.0,105010.0,0.25132565]
[1749895974202,1.02540268,105020.0,105010.0,0.25132565]
[1749895974411,0.99709092,105020.0,105010.0,0.25132565]
[1749895974619,1.00661209,105020.0,105010.0,0.25132565]
[1749895974821,0.99709092,105020.0,105010.0,0.25132565]
[1749895975444,1.00661209,105020.0,105010.0,0.25132565]
[1749895975674,0.44130321,105020.0,105010.0,0.25132565]
[1749895975889,0.44130321,105020.0,105010.0,0.34756741]
[1749895976530,0.44230321,105020.0,105010.0,0.34756741]
[1749895976751,0.40114321,105020.0,105010.0,0.90335512]
[1749895977013,0.40114321,105020.0,105010.0,0.99950434]
[1749895977870,0.40114321,105020.0,105010.0,1.00050434]
[1749895979202,0.40114321,105020.0,105010.0,0.99950434]
[1749895979638,0.40014321,105020.0,105010.0,1.00250434]
[1749895980070,0.40014321,105020.0,105010.0,1.00550434]
[1749895981355,0.40014321,105020.0,105010.0,0.90935512]
[1749895985360,0.2455883,105020.0,105010.0,0.90935512]
[1749895986052,0.2455883,105020.0,105010.0,0.35356741]
[1749895986258,0.2455883,105020.0,105010.0,0.9188054]
[1749895987150,0.2455883,105020.0,105010.0,0.35356741]
[1749895987360,0.2455883,105020.0,105010.0,1.00550434]
[1749895989415,0.2455883,105020.0,105010.0,1.01509108]
[1749895991127,0.2455883,105020.0,105010.0,1.17185108]
[1749895992555,0.2455883,105020.0,105010.0,0.61606337]
[1749895992767,0.2455883,105020.0,105010.0,1.17185108]
[1749895993817,0.2455883,105020.0,105010.0,0.61414337]
[1749895994027,0.2455883,105020.0,105010.0,1.16993108]
[1749895994447,0.2455883,105020.0,105010.0,1.16034434]
[1749895997321,0.2455883,105020.0,105010.0,1.16994062]
[1749896007963,0.2455883,105020.0,105010.0,1.16034434]
[1749896011877,0.2455883,105020.0,105010.0,1.16972877]
[1749896012479,0.2455883,105020.0,105010.0,1.16034434]
[1749896015461,0.2455883,105020.0,105010.0,1.17488519]
[1749896016091,0.2455883,105020.0,105010.0,1.18450247]